[Event "Titled Tuesday Blitz February 07 Late 2023"]
[White "Manukyan, Sargis A."]
[Black "Herman, Daniel"]
[WhiteFideId "13303970"]
[BlackFideId "30935008"]
[WhiteElo "2158"]
[BlackElo "1956"]
[Result "1-0"]
[Round "03"]
[TimeControl "180+2"]
[Date "2023.02.07"]
[WhiteClock "0:01:34"]
[BlackClock "0:00:05"]

1. d4 {[%clk 0:03:00]}  d5 {[%clk 0:02:57]} 2. c4 {[%clk 0:03:01]}  c6 {[%clk 0:02:57]} 3. Nc3 {[%clk 0:03:01]}  Nf6 {[%clk 0:02:56]} 4. e3 {[%clk 0:03:02]}  e6 {[%clk 0:02:54]} 5. Nf3 {[%clk 0:03:02]}  Nbd7 {[%clk 0:02:54]} 6. Bd3 {[%clk 0:03:03]}  dxc4 {[%clk 0:02:53]} 7. Bxc4 {[%clk 0:03:03]}  b5 {[%clk 0:02:52]} 8. Bd3 {[%clk 0:03:03]}  Bb7 {[%clk 0:02:52]} 9. O-O {[%clk 0:03:02]}  Bd6 {[%clk 0:02:47]} 10. e4 {[%clk 0:03:02]}  e5 {[%clk 0:02:47]} 11. d5 {[%clk 0:02:51]}  a6 {[%clk 0:02:27]} 12. dxc6 {[%clk 0:02:48]}  Bxc6 {[%clk 0:02:18]} 13. Bxb5 {[%clk 0:02:49]}  Bxb5 {[%clk 0:01:46]} 14. Nxb5 {[%clk 0:02:48]}  axb5 {[%clk 0:01:45]} 15. Qxd6 {[%clk 0:02:48]}  Qe7 {[%clk 0:01:34]} 16. Qxe7+ {[%clk 0:02:41]}  Kxe7 {[%clk 0:01:35]} 17. Bg5 {[%clk 0:02:41]}  Ke6 {[%clk 0:01:23]} 18. Rfe1 {[%clk 0:02:40]}  Rhc8 {[%clk 0:01:20]} 19. a3 {[%clk 0:02:39]}  Nc5 {[%clk 0:01:13]} 20. Bxf6 {[%clk 0:02:36]}  gxf6 {[%clk 0:01:11]} 21. Rad1 {[%clk 0:02:33]}  Rd8 {[%clk 0:01:08]} 22. Rb1 {[%clk 0:02:13]}  Nd3 {[%clk 0:00:58]} 23. Re3 {[%clk 0:02:11]}  Rac8 {[%clk 0:00:46]} 24. h3 {[%clk 0:01:57]}  Nf4 {[%clk 0:00:31]} 25. g3 {[%clk 0:01:46]}  Nxh3+ {[%clk 0:00:30]} 26. Kg2 {[%clk 0:01:47]}  Ng5 {[%clk 0:00:30]} 27. Nxg5+ {[%clk 0:01:48]}  fxg5 {[%clk 0:00:31]} 28. Rh1 {[%clk 0:01:48]}  Rc2 {[%clk 0:00:17]} 29. Rh6+ {[%clk 0:01:44]}  f6 {[%clk 0:00:15]} 30. Rf3 {[%clk 0:01:44]}  Rf8 {[%clk 0:00:15]} 31. Rb3 {[%clk 0:01:41]}  Rb8 {[%clk 0:00:15]} 32. Rxh7 {[%clk 0:01:40]}  Rc4 {[%clk 0:00:13]} 33. Rb4 {[%clk 0:01:37]}  Rxb4 {[%clk 0:00:10]} 34. axb4 {[%clk 0:01:38]}  Rd8 {[%clk 0:00:08]} 35. Rb7 {[%clk 0:01:38]}  Rd2 {[%clk 0:00:07]} 36. Rb6+ {[%clk 0:01:39]}  Kf7 {[%clk 0:00:07]} 37. b3 {[%clk 0:01:37]}  Rb2 {[%clk 0:00:05]} 38. Rb7+ {[%clk 0:01:38]}  Kg6 {[%clk 0:00:04]} 39. Rxb5 {[%clk 0:01:38]}  Rxb3 {[%clk 0:00:05]} 40. g4 {[%clk 0:01:35]}  Kf7 {[%clk 0:00:05]} 41. Rb6 {[%clk 0:01:34]}  Rb2 {[%clk 0:00:03]} 42. Kg3 {[%clk 0:01:34]}  Rb3+ {[%clk 0:00:04]} 43. f3 {[%clk 0:01:35]}  Rb2 {[%clk 0:00:04]} 44. b5 {[%clk 0:01:35]}  Kg6 {[%clk 0:00:05]} 45. Rb7 {[%clk 0:01:35]}  Kh6 {[%clk 0:00:05]} 46. b6 {[%clk 0:01:36]}  Kg6 {[%clk 0:00:05]} 47. Rb8 {[%clk 0:01:36]}  Kg7 {[%clk 0:00:05]} 48. Kh3 {[%clk 0:01:34]}  Kh7 {[%clk 0:00:05]} 49. Kg3 {[%clk 0:01:31]}  Kg7 {[%clk 0:00:06]} 50. b7 {[%clk 0:01:31]}  Kh7 {[%clk 0:00:05]} 51. Rf8 {[%clk 0:01:32]}  Rxb7 {[%clk 0:00:05]} 52. Rxf6 {[%clk 0:01:32]}  Kg7 {[%clk 0:00:04]} 53. Rf5 {[%clk 0:01:33]}  Kg6 {[%clk 0:00:04]} 54. Rxe5 {[%clk 0:01:34]}  Rb3 {[%clk 0:00:05]} 55. Re6+ {[%clk 0:01:34]}  Kg7 {[%clk 0:00:05]} 56. Rc6 {[%clk 0:01:35]}  Rc3 {[%clk 0:00:05]} 57. Rxc3 {[%clk 0:01:34]} 1-0


[Site "https://www.chess.com"]

[Event "Titled Tuesday Blitz February 07 Late 2023"]
[White "Crevatin, Leo"]
[Black "Saya, Ethan"]
[WhiteFideId "1726307"]
[BlackFideId "26095181"]
[WhiteElo "2292"]
[BlackElo "2181"]
[Result "0-1"]
[Round "03"]
[TimeControl "180+2"]
[Date "2023.02.07"]
[WhiteClock "0:00:02"]
[BlackClock "0:00:06"]

1. e4 {[%clk 0:02:59]}  c5 {[%clk 0:02:52]} 2. c3 {[%clk 0:02:59]}  Nf6 {[%clk 0:02:48]} 3. e5 {[%clk 0:02:59]}  Nd5 {[%clk 0:02:48]} 4. Nf3 {[%clk 0:02:58]}  d6 {[%clk 0:02:46]} 5. Bb5+ {[%clk 0:02:57]}  Bd7 {[%clk 0:02:44]} 6. Bc4 {[%clk 0:02:56]}  e6 {[%clk 0:02:37]} 7. O-O {[%clk 0:02:52]}  Nc6 {[%clk 0:02:36]} 8. d4 {[%clk 0:02:52]}  cxd4 {[%clk 0:02:36]} 9. cxd4 {[%clk 0:02:52]}  Nb6 {[%clk 0:02:34]} 10. Bd3 {[%clk 0:02:47]}  Be7 {[%clk 0:02:28]} 11. Nc3 {[%clk 0:02:46]}  O-O {[%clk 0:02:22]} 12. Qe2 {[%clk 0:02:39]}  Nb4 {[%clk 0:01:51]} 13. Bb1 {[%clk 0:02:36]}  N4d5 {[%clk 0:01:51]} 14. Ne4 {[%clk 0:02:34]}  dxe5 {[%clk 0:01:38]} 15. dxe5 {[%clk 0:02:35]}  Bc6 {[%clk 0:01:38]} 16. Nfg5 {[%clk 0:02:21]}  g6 {[%clk 0:01:31]} 17. h4 {[%clk 0:02:21]}  Qd7 {[%clk 0:01:23]} 18. Rd1 {[%clk 0:02:10]}  Rad8 {[%clk 0:01:19]} 19. Bc2 {[%clk 0:01:49]}  Ba4 {[%clk 0:01:13]} 20. b3 {[%clk 0:01:44]}  Bb5 {[%clk 0:01:13]} 21. Qg4 {[%clk 0:01:44]}  Qc6 {[%clk 0:01:10]} 22. Bd3 {[%clk 0:01:21]}  Nc3 {[%clk 0:00:44]} 23. Nxc3 {[%clk 0:00:44]}  Qxc3 {[%clk 0:00:43]} 24. Bb2 {[%clk 0:00:39]}  Qxb2 {[%clk 0:00:36]} 25. Bxb5 {[%clk 0:00:39]}  Nd5 {[%clk 0:00:25]} 26. Ne4 {[%clk 0:00:25]}  Qxe5 {[%clk 0:00:24]} 27. Qf3 {[%clk 0:00:15]}  Qf4 {[%clk 0:00:18]} 28. Qxf4 {[%clk 0:00:12]}  Nxf4 {[%clk 0:00:19]} 29. g3 {[%clk 0:00:12]}  Nd5 {[%clk 0:00:18]} 30. Rac1 {[%clk 0:00:12]}  Rc8 {[%clk 0:00:16]} 31. Bc4 {[%clk 0:00:12]}  Nb6 {[%clk 0:00:15]} 32. Be2 {[%clk 0:00:11]}  Rxc1 {[%clk 0:00:13]} 33. Rxc1 {[%clk 0:00:12]}  Rc8 {[%clk 0:00:13]} 34. Rxc8+ {[%clk 0:00:12]}  Nxc8 {[%clk 0:00:14]} 35. Bf3 {[%clk 0:00:12]}  Kf8 {[%clk 0:00:12]} 36. Kf1 {[%clk 0:00:12]}  Ke8 {[%clk 0:00:12]} 37. Ke2 {[%clk 0:00:12]}  Kd7 {[%clk 0:00:13]} 38. h5 {[%clk 0:00:09]}  b6 {[%clk 0:00:11]} 39. g4 {[%clk 0:00:08]}  gxh5 {[%clk 0:00:10]} 40. gxh5 {[%clk 0:00:08]}  Nd6 {[%clk 0:00:11]} 41. Nxd6 {[%clk 0:00:07]}  Kxd6 {[%clk 0:00:11]} 42. Be4 {[%clk 0:00:07]}  f5 {[%clk 0:00:11]} 43. Bc2 {[%clk 0:00:07]}  Ke5 {[%clk 0:00:11]} 44. Kf3 {[%clk 0:00:08]}  Kd4 {[%clk 0:00:11]} 45. a4 {[%clk 0:00:03]}  Bd6 {[%clk 0:00:10]} 46. Ke2 {[%clk 0:00:02]}  Kc3 {[%clk 0:00:09]} 47. Kd1 {[%clk 0:00:02]}  h6 {[%clk 0:00:08]} 48. f3 {[%clk 0:00:03]}  a5 {[%clk 0:00:07]} 49. Kc1 {[%clk 0:00:03]}  Kd4 {[%clk 0:00:07]} 50. Kd2 {[%clk 0:00:03]}  Bb4+ {[%clk 0:00:08]} 51. Ke2 {[%clk 0:00:03]}  Kc3 {[%clk 0:00:08]} 52. Bd3 {[%clk 0:00:03]}  Kxb3 {[%clk 0:00:07]} 53. Bb5 {[%clk 0:00:04]}  Kc3 {[%clk 0:00:07]} 54. Ke3 {[%clk 0:00:04]}  Bd6 {[%clk 0:00:06]} 55. f4 {[%clk 0:00:02]}  Kb4 {[%clk 0:00:06]} 0-1


[Site "https://www.chess.com"]

[Event "Titled Tuesday Blitz February 07 Late 2023"]
[White "Chylewski, Patryk"]
[Black "Grot, Blazej"]
[WhiteFideId "1186191"]
[BlackFideId "21835845"]
[WhiteElo "2281"]
[BlackElo "1990"]
[Result "1-0"]
[Round "03"]
[TimeControl "180+2"]
[Date "2023.02.07"]
[WhiteClock "0:00:34"]
[BlackClock "0:00:03"]

1. e4 {[%clk 0:03:00]}  e5 {[%clk 0:02:57]} 2. Nf3 {[%clk 0:03:00]}  Nc6 {[%clk 0:02:57]} 3. d4 {[%clk 0:03:01]}  exd4 {[%clk 0:02:56]} 4. Bc4 {[%clk 0:03:01]}  Bc5 {[%clk 0:02:56]} 5. c3 {[%clk 0:03:01]}  Nf6 {[%clk 0:02:55]} 6. e5 {[%clk 0:03:01]}  d5 {[%clk 0:02:55]} 7. Be2 {[%clk 0:03:01]}  Ne4 {[%clk 0:02:54]} 8. cxd4 {[%clk 0:03:02]}  Bb6 {[%clk 0:02:54]} 9. O-O {[%clk 0:03:02]}  Bg4 {[%clk 0:02:51]} 10. Be3 {[%clk 0:03:00]}  O-O {[%clk 0:02:51]} 11. Nbd2 {[%clk 0:03:00]}  f6 {[%clk 0:02:50]} 12. exf6 {[%clk 0:02:58]}  Qxf6 {[%clk 0:02:45]} 13. Rc1 {[%clk 0:02:24]}  Rae8 {[%clk 0:02:28]} 14. Re1 {[%clk 0:02:10]}  Nxd4 {[%clk 0:01:23]} 15. Nxe4 {[%clk 0:01:01]}  Rxe4 {[%clk 0:00:41]} 16. Nxd4 {[%clk 0:01:00]}  Bxd4 {[%clk 0:00:04]} 17. Bxg4 {[%clk 0:00:55]}  Bxe3 {[%clk 0:00:03]} 18. fxe3 {[%clk 0:00:55]}  Qf2+ {[%clk 0:00:02]} 19. Kh1 {[%clk 0:00:55]}  Rxe3 {[%clk 0:00:01]} 20. Rxe3 {[%clk 0:00:52]}  Qxe3 {[%clk 0:00:02]} 21. Qxd5+ {[%clk 0:00:52]}  Kh8 {[%clk 0:00:02]} 22. Rd1 {[%clk 0:00:49]}  Qf4 {[%clk 0:00:02]} 23. Bf3 {[%clk 0:00:46]}  c6 {[%clk 0:00:02]} 24. Qd6 {[%clk 0:00:45]}  Qf7 {[%clk 0:00:01]} 25. h3 {[%clk 0:00:42]}  h6 {[%clk 0:00:01]} 26. Qd7 {[%clk 0:00:42]}  Qf6 {[%clk 0:00:02]} 27. Qxb7 {[%clk 0:00:40]}  Rf7 {[%clk 0:00:03]} 28. Qxc6 {[%clk 0:00:37]}  Qxb2 {[%clk 0:00:03]} 29. Rd8+ {[%clk 0:00:34]}  Kh7 {[%clk 0:00:03]} 30. Be4+ {[%clk 0:00:34]}  g6 {[%clk 0:00:03]} 31. Qxg6# {[%clk 0:00:34]} 1-0


[Site "https://www.chess.com"]

[Event "Titled Tuesday Blitz February 07 Late 2023"]
[White "Rengifo Blancas, Renzo Jhonathan"]
[Black "Olenik Campa, Rudi"]
[WhiteFideId "3807185"]
[BlackFideId "14633264"]
[WhiteElo "2131"]
[BlackElo "2356"]
[Result "0-1"]
[Round "03"]
[TimeControl "180+2"]
[Date "2023.02.07"]
[WhiteClock "0:00:41"]
[BlackClock "0:02:31"]

1. e4 {[%clk 0:03:00]}  e6 {[%clk 0:02:59]} 2. d4 {[%clk 0:03:00]}  d5 {[%clk 0:02:59]} 3. Bd3 {[%clk 0:03:01]}  dxe4 {[%clk 0:02:59]} 4. Bxe4 {[%clk 0:03:02]}  Nf6 {[%clk 0:02:59]} 5. Bf3 {[%clk 0:03:03]}  Be7 {[%clk 0:02:58]} 6. Ne2 {[%clk 0:03:01]}  O-O {[%clk 0:02:58]} 7. O-O {[%clk 0:03:01]}  Nbd7 {[%clk 0:02:57]} 8. b3 {[%clk 0:03:01]}  c5 {[%clk 0:02:57]} 9. Bb2 {[%clk 0:03:01]}  cxd4 {[%clk 0:02:56]} 10. Qxd4 {[%clk 0:03:01]}  Qc7 {[%clk 0:02:55]} 11. Nbc3 {[%clk 0:02:59]}  a6 {[%clk 0:02:55]} 12. Rfd1 {[%clk 0:02:55]}  Rb8 {[%clk 0:02:54]} 13. Rac1 {[%clk 0:02:50]}  b5 {[%clk 0:02:53]} 14. Ne4 {[%clk 0:02:49]}  e5 {[%clk 0:02:42]} 15. Nxf6+ {[%clk 0:02:36]}  Bxf6 {[%clk 0:02:42]} 16. Qd6 {[%clk 0:02:35]}  Qxd6 {[%clk 0:02:37]} 17. Rxd6 {[%clk 0:02:35]}  e4 {[%clk 0:02:38]} 18. Bxf6 {[%clk 0:01:28]}  exf3 {[%clk 0:02:35]} 19. Be7 {[%clk 0:00:43]}  Re8 {[%clk 0:02:33]} 20. Rxd7 {[%clk 0:00:43]}  Bxd7 {[%clk 0:02:31]} 21. Bd6 {[%clk 0:00:41]}  fxe2 {[%clk 0:02:31]} 0-1


[Site "https://www.chess.com"]

[Event "Titled Tuesday Blitz February 07 Late 2023"]
[White "Mohammed, Zozek Salah Mohammed"]
[Black "Tarhan, Adar"]
[WhiteFideId "4803361"]
[BlackFideId "34544712"]
[WhiteElo "2210"]
[BlackElo "2314"]
[Result "1-0"]
[Round "03"]
[TimeControl "180+2"]
[Date "2023.02.07"]
[WhiteClock "0:01:20"]
[BlackClock "0:01:14"]

1. d4 {[%clk 0:02:55]}  Nf6 {[%clk 0:02:59]} 2. Nf3 {[%clk 0:02:54]}  d5 {[%clk 0:02:59]} 3. g3 {[%clk 0:02:55]}  c6 {[%clk 0:02:59]} 4. Bg2 {[%clk 0:02:56]}  Bg4 {[%clk 0:03:00]} 5. O-O {[%clk 0:02:55]}  Bxf3 {[%clk 0:02:59]} 6. Bxf3 {[%clk 0:02:55]}  e6 {[%clk 0:02:59]} 7. Nd2 {[%clk 0:02:55]}  h5 {[%clk 0:03:00]} 8. e4 {[%clk 0:02:55]}  h4 {[%clk 0:02:57]} 9. e5 {[%clk 0:02:54]}  Nfd7 {[%clk 0:02:57]} 10. c4 {[%clk 0:02:54]}  hxg3 {[%clk 0:02:54]} 11. fxg3 {[%clk 0:02:53]}  Qb6 {[%clk 0:02:48]} 12. c5 {[%clk 0:02:32]}  Bxc5 {[%clk 0:02:48]} 13. dxc5 {[%clk 0:02:31]}  Qxc5+ {[%clk 0:02:49]} 14. Kg2 {[%clk 0:02:30]}  Nxe5 {[%clk 0:02:50]} 15. Nb3 {[%clk 0:02:29]}  Qd6 {[%clk 0:02:41]} 16. Bf4 {[%clk 0:02:28]}  Nbd7 {[%clk 0:02:39]} 17. Qe2 {[%clk 0:02:26]}  O-O-O {[%clk 0:02:38]} 18. Rae1 {[%clk 0:02:25]}  f6 {[%clk 0:02:39]} 19. Nd4 {[%clk 0:02:23]}  g5 {[%clk 0:02:35]} 20. Bd2 {[%clk 0:02:12]}  Nc5 {[%clk 0:02:20]} 21. Bc3 {[%clk 0:02:01]}  Rh6 {[%clk 0:02:02]} 22. Bg4 {[%clk 0:01:51]}  Rdh8 {[%clk 0:02:00]} 23. Rh1 {[%clk 0:01:48]}  Ncd3 {[%clk 0:01:45]} 24. Ref1 {[%clk 0:01:46]}  f5 {[%clk 0:01:44]} 25. Bxf5 {[%clk 0:01:38]}  exf5 {[%clk 0:01:34]} 26. Nxf5 {[%clk 0:01:39]}  Qe6 {[%clk 0:01:31]} 27. Nxh6 {[%clk 0:01:33]}  Qxh6 {[%clk 0:01:26]} 28. Bxe5 {[%clk 0:01:25]}  Qh3+ {[%clk 0:01:25]} 29. Kg1 {[%clk 0:01:25]}  Qe6 {[%clk 0:01:14]} 30. Qxd3 {[%clk 0:01:20]} 1-0


[Site "https://www.chess.com"]

[Event "Titled Tuesday Blitz February 07 Late 2023"]
[White "Figorito, Nick"]
[Black "Aldokhin, Ivan"]
[WhiteFideId "30923689"]
[BlackFideId "24115720"]
[WhiteElo "2036"]
[BlackElo "2413"]
[Result "0-1"]
[Round "03"]
[TimeControl "180+2"]
[Date "2023.02.07"]
[WhiteClock "0:00:11"]
[BlackClock "0:00:07"]

1. Nf3 {[%clk 0:03:00]}  Nf6 {[%clk 0:02:29]} 2. g3 {[%clk 0:03:01]}  g6 {[%clk 0:02:29]} 3. Bg2 {[%clk 0:03:01]}  Bg7 {[%clk 0:02:29]} 4. O-O {[%clk 0:03:02]}  O-O {[%clk 0:02:30]} 5. c4 {[%clk 0:03:03]}  d6 {[%clk 0:02:30]} 6. Nc3 {[%clk 0:03:03]}  e5 {[%clk 0:02:29]} 7. d3 {[%clk 0:03:04]}  Re8 {[%clk 0:02:29]} 8. e4 {[%clk 0:03:03]}  a5 {[%clk 0:02:26]} 9. Rb1 {[%clk 0:03:03]}  Nc6 {[%clk 0:02:16]} 10. a3 {[%clk 0:03:03]}  Bg4 {[%clk 0:02:16]} 11. h3 {[%clk 0:02:58]}  Bd7 {[%clk 0:02:09]} 12. b4 {[%clk 0:02:55]}  axb4 {[%clk 0:02:09]} 13. axb4 {[%clk 0:02:56]}  Rf8 {[%clk 0:02:09]} 14. b5 {[%clk 0:02:55]}  Na5 {[%clk 0:02:00]} 15. Bg5 {[%clk 0:02:49]}  h6 {[%clk 0:01:58]} 16. Be3 {[%clk 0:02:39]}  b6 {[%clk 0:01:58]} 17. Ne1 {[%clk 0:02:33]}  Nb7 {[%clk 0:01:45]} 18. Nc2 {[%clk 0:02:33]}  Nc5 {[%clk 0:01:40]} 19. Nb4 {[%clk 0:02:32]}  Ra3 {[%clk 0:01:37]} 20. Bxc5 {[%clk 0:02:11]}  bxc5 {[%clk 0:01:27]} 21. Nbd5 {[%clk 0:02:11]}  Nxd5 {[%clk 0:01:23]} 22. Nxd5 {[%clk 0:02:11]}  f5 {[%clk 0:01:03]} 23. exf5 {[%clk 0:01:58]}  Bxf5 {[%clk 0:00:58]} 24. Rb3 {[%clk 0:01:49]}  Ra2 {[%clk 0:00:50]} 25. g4 {[%clk 0:01:42]}  Be6 {[%clk 0:00:44]} 26. Be4 {[%clk 0:01:41]}  Qh4 {[%clk 0:00:38]} 27. Bg2 {[%clk 0:00:49]}  Rfxf2 {[%clk 0:00:35]} 28. Ne3 {[%clk 0:00:38]}  Qg3 {[%clk 0:00:31]} 29. Rxf2 {[%clk 0:00:23]}  Qxf2+ {[%clk 0:00:28]} 30. Kh1 {[%clk 0:00:24]}  Qxe3 {[%clk 0:00:27]} 31. b6 {[%clk 0:00:20]}  cxb6 {[%clk 0:00:22]} 32. Rxb6 {[%clk 0:00:20]}  Qf2 {[%clk 0:00:12]} 33. Qf3 {[%clk 0:00:16]}  Qxf3 {[%clk 0:00:10]} 34. Bxf3 {[%clk 0:00:17]}  e4 {[%clk 0:00:11]} 35. Bxe4 {[%clk 0:00:14]}  Ra1+ {[%clk 0:00:09]} 36. Kg2 {[%clk 0:00:14]}  Be5 {[%clk 0:00:06]} 37. Bxg6 {[%clk 0:00:09]}  Kg7 {[%clk 0:00:06]} 38. Be4 {[%clk 0:00:10]}  Kf6 {[%clk 0:00:07]} 39. Rb7 {[%clk 0:00:10]}  Kg5 {[%clk 0:00:06]} 40. Rh7 {[%clk 0:00:09]}  Ra2+ {[%clk 0:00:04]} 41. Kf3 {[%clk 0:00:07]}  Bd4 {[%clk 0:00:03]} 42. Kg3 {[%clk 0:00:05]}  Be5+ {[%clk 0:00:02]} 43. Kf3 {[%clk 0:00:06]}  Bg8 {[%clk 0:00:02]} 44. Re7 {[%clk 0:00:05]}  Rh2 {[%clk 0:00:02]} 45. h4+ {[%clk 0:00:04]}  Kxh4 {[%clk 0:00:01]} 46. Bd5 {[%clk 0:00:04]}  Rh3+ {[%clk 0:00:02]} 47. Ke4 {[%clk 0:00:04]}  Bxd5+ {[%clk 0:00:02]} 48. Kxd5 {[%clk 0:00:05]}  Rxd3+ {[%clk 0:00:02]} 49. Kc6 {[%clk 0:00:06]}  Rd4 {[%clk 0:00:03]} 50. Kb5 {[%clk 0:00:07]}  Kxg4 {[%clk 0:00:03]} 51. Rh7 {[%clk 0:00:07]}  Kh5 {[%clk 0:00:03]} 52. Rh8 {[%clk 0:00:08]}  Bxh8 {[%clk 0:00:03]} 53. Kc6 {[%clk 0:00:08]}  Be5 {[%clk 0:00:04]} 54. Kb5 {[%clk 0:00:09]}  Kg5 {[%clk 0:00:05]} 55. Ka4 {[%clk 0:00:09]}  Rxc4+ {[%clk 0:00:05]} 56. Kb5 {[%clk 0:00:10]}  Rd4 {[%clk 0:00:06]} 57. Kc6 {[%clk 0:00:11]}  h5 {[%clk 0:00:07]} 0-1


[Site "https://www.chess.com"]

[Event "Titled Tuesday Blitz February 07 Late 2023"]
[White "Ladan, Nicholas"]
[Black "Tyagi, Kushan"]
[WhiteFideId "30918855"]
[BlackFideId "2040069"]
[WhiteElo "2228"]
[BlackElo "2060"]
[Result "1-0"]
[Round "03"]
[TimeControl "180+2"]
[Date "2023.02.07"]
[WhiteClock "0:00:08"]
[BlackClock "0:00:03"]

1. d4 {[%clk 0:03:00]}  Nf6 {[%clk 0:02:51]} 2. Bf4 {[%clk 0:02:57]}  e6 {[%clk 0:02:46]} 3. e3 {[%clk 0:02:50]}  c5 {[%clk 0:02:46]} 4. c3 {[%clk 0:02:50]}  Nc6 {[%clk 0:02:46]} 5. Nd2 {[%clk 0:02:50]}  d5 {[%clk 0:02:42]} 6. Ngf3 {[%clk 0:02:47]}  Bd6 {[%clk 0:02:41]} 7. Bg3 {[%clk 0:02:46]}  O-O {[%clk 0:02:36]} 8. Bd3 {[%clk 0:02:44]}  b6 {[%clk 0:02:34]} 9. O-O {[%clk 0:02:43]}  Qc7 {[%clk 0:02:33]} 10. Bh4 {[%clk 0:02:35]}  Nd7 {[%clk 0:02:19]} 11. e4 {[%clk 0:02:24]}  cxd4 {[%clk 0:02:16]} 12. exd5 {[%clk 0:02:15]}  exd5 {[%clk 0:02:08]} 13. cxd4 {[%clk 0:02:10]}  Be7 {[%clk 0:02:04]} 14. Bg3 {[%clk 0:02:05]}  Bd6 {[%clk 0:02:03]} 15. Rc1 {[%clk 0:02:02]}  Bxg3 {[%clk 0:02:01]} 16. hxg3 {[%clk 0:02:03]}  Qd6 {[%clk 0:02:01]} 17. Bxh7+ {[%clk 0:01:53]}  Kxh7 {[%clk 0:01:54]} 18. Qc2+ {[%clk 0:01:54]}  Kg8 {[%clk 0:01:36]} 19. Qxc6 {[%clk 0:01:54]}  Qxc6 {[%clk 0:01:33]} 20. Rxc6 {[%clk 0:01:55]}  Nf6 {[%clk 0:01:32]} 21. Re1 {[%clk 0:01:49]}  Bd7 {[%clk 0:01:27]} 22. Rc7 {[%clk 0:01:47]}  Rfc8 {[%clk 0:01:27]} 23. Rec1 {[%clk 0:01:43]}  Kf8 {[%clk 0:01:21]} 24. Ne5 {[%clk 0:01:43]}  Be6 {[%clk 0:01:20]} 25. Ndf3 {[%clk 0:01:37]}  Ne8 {[%clk 0:01:15]} 26. R7c6 {[%clk 0:01:19]}  Rxc6 {[%clk 0:01:13]} 27. Rxc6 {[%clk 0:01:20]}  Rc8 {[%clk 0:01:14]} 28. Ng5 {[%clk 0:01:16]}  Rxc6 {[%clk 0:01:00]} 29. Nxc6 {[%clk 0:01:17]}  a6 {[%clk 0:00:58]} 30. Nxe6+ {[%clk 0:01:07]}  fxe6 {[%clk 0:00:59]} 31. Nb8 {[%clk 0:01:08]}  Nc7 {[%clk 0:00:50]} 32. Nd7+ {[%clk 0:01:07]}  Ke7 {[%clk 0:00:50]} 33. Nxb6 {[%clk 0:01:08]}  Nb5 {[%clk 0:00:49]} 34. Na4 {[%clk 0:00:55]}  Nxd4 {[%clk 0:00:47]} 35. Nc5 {[%clk 0:00:53]}  a5 {[%clk 0:00:47]} 36. Nb7 {[%clk 0:00:53]}  Nc6 {[%clk 0:00:46]} 37. Kf1 {[%clk 0:00:50]}  e5 {[%clk 0:00:43]} 38. Ke2 {[%clk 0:00:50]}  Kd7 {[%clk 0:00:39]} 39. Kd3 {[%clk 0:00:45]}  g6 {[%clk 0:00:36]} 40. Kc3 {[%clk 0:00:45]}  Kc7 {[%clk 0:00:36]} 41. Nc5 {[%clk 0:00:43]}  Kd6 {[%clk 0:00:36]} 42. Nd3 {[%clk 0:00:39]}  g5 {[%clk 0:00:33]} 43. b4 {[%clk 0:00:37]}  axb4+ {[%clk 0:00:26]} 44. Nxb4 {[%clk 0:00:38]}  Na5 {[%clk 0:00:18]} 45. Nc2 {[%clk 0:00:30]}  Kc5 {[%clk 0:00:16]} 46. a4 {[%clk 0:00:25]}  Nc4 {[%clk 0:00:16]} 47. Ne1 {[%clk 0:00:22]}  d4+ {[%clk 0:00:13]} 48. Kb3 {[%clk 0:00:17]}  e4 {[%clk 0:00:13]} 49. f3 {[%clk 0:00:08]}  d3 {[%clk 0:00:06]} 50. fxe4 {[%clk 0:00:08]}  d2 {[%clk 0:00:06]} 51. Nd3+ {[%clk 0:00:09]}  Kd4 {[%clk 0:00:05]} 52. Kc2 {[%clk 0:00:09]}  Kxe4 {[%clk 0:00:04]} 53. Nc5+ {[%clk 0:00:08]}  Ke3 {[%clk 0:00:03]} 54. Nb3 {[%clk 0:00:08]} 1-0


[Site "https://www.chess.com"]

[Event "Titled Tuesday Blitz February 07 Late 2023"]
[White "Sourath Biswas"]
[Black "TheKnightOfBosnia"]
[WhiteFideId "35091484"]
[WhiteElo "2281"]
[BlackElo "2526"]
[Result "0-1"]
[Round "03"]
[TimeControl "180+2"]
[Date "2023.02.07"]
[WhiteClock "0:01:59"]
[BlackClock "0:01:45"]

1. d4 {[%clk 0:03:00]}  Nf6 {[%clk 0:03:00]} 2. Bf4 {[%clk 0:02:57]}  c5 {[%clk 0:02:59]} 3. e3 {[%clk 0:02:56]}  g6 {[%clk 0:02:59]} 4. c3 {[%clk 0:02:50]}  Qb6 {[%clk 0:02:57]} 5. Qb3 {[%clk 0:02:39]}  Bg7 {[%clk 0:02:51]} 6. Nd2 {[%clk 0:02:36]}  d6 {[%clk 0:02:44]} 7. Nc4 {[%clk 0:02:30]}  Qc7 {[%clk 0:02:44]} 8. dxc5 {[%clk 0:02:29]}  Qxc5 {[%clk 0:02:43]} 9. Nf3 {[%clk 0:02:28]}  O-O {[%clk 0:02:42]} 10. Be2 {[%clk 0:02:23]}  Nc6 {[%clk 0:02:36]} 11. O-O {[%clk 0:02:20]}  Be6 {[%clk 0:02:35]} 12. Nd4 {[%clk 0:02:20]}  Bd5 {[%clk 0:01:47]} 13. Qb5 {[%clk 0:02:10]}  Nxd4 {[%clk 0:01:45]} 14. Nxd6 {[%clk 0:01:59]} 0-1


[Site "https://www.chess.com"]